Cogmind - Beta 14 @@@ ROGUE MODE // 2025.01.10 @ 17:11:02 Player: FenRhew Result: Destroyed by S-10 Pest with Light Assault Rifle Performance ------------- Evolutions (0) 0 Regions Visited (2) 400 Robots Destroyed (33) 165 Value Destroyed (632) 632 Prototype IDs (0) 0 Alien Tech Used (0) 0 Bonus (4) 4 TOTAL SCORE: 1201 Bonus ------- High Alert Combat Kills 4 Cogmind --------- Core Integrity 0/250 Matter 289/300 Energy 250/250 System Corruption 2% Temperature Cool (87) Movement Walking (190) Ox1 Location -10/Mines Parts ------- > --- POWER (1) -------- Ion Engine > --- PROPULSION (2) --- Aluminum Leg > --- UTILITY (2) ------ Medium Storage Unit > --- WEAPON (2) ------- Particle Gun Assault Rifle > --- INVENTORY (10) --- Light Ion Engine Hover Unit Hover Unit Medium Laser Light Assault Rifle Grenade Launcher Rocket Launcher Mining Laser Peak State ------------ > --- POWER ------------ Light Ion Engine > --- PROPULSION ------- Light Treads Light Treads > --- UTILITY ---------- Small Storage Unit Tractor Beam > --- WEAPON ----------- EM Pulse Gun Light Assault Rifle > --- INVENTORY -------- Ion Engine Aluminum Leg Aluminum Leg Hover Unit Hover Unit Hacking Suite Medium Laser Grenade Launcher [Rating: 8] Favorites ----------- Power Ion Engine Engine Ion Engine Propulsion Light Treads Treads Light Treads Leg Aluminum Leg Utility Tractor Beam Device Tractor Beam Storage Small Storage Unit Weapon Light Assault Rifle Energy Gun EM Pulse Gun Ballistic Gun Light Assault Rifle Launcher Rocket Launcher Build | -11 -10 -10 ------- Run | Yrd Mat Min Slots Evolved . | . . . Power . | . . . Propulsion . | . . . Utility . | . . . Weapon . | . . . Parts Attached 21 | 7 6 8 Power 4 | 1 1 2 Engine 4 | 1 1 2 Core . | . . . Reactor . | . . . Propulsion 6 | 2 2 2 Treads 4 | 2 2 . Leg 2 | . . 2 Wheel . | . . . Hover . | . . . Flight . | . . . Utility 3 | 2 1 . Device 1 | 1 . . Storage 2 | 1 1 . Processor . | . . . Hackware . | . . . Protection . | . . . Artifact . | . . . Weapon 8 | 2 2 4 Energy Gun 3 | 1 1 1 Energy Cannon . | . . . Ballistic Gun 4 | 1 1 2 Ballistic Cannon . | . . . Launcher 1 | . . 1 Special Weapon . | . . . Impact Weapon . | . . . Slashing Weapon . | . . . Piercing Weapon . | . . . Special Melee Weapon . | . . . Unidentified Prototypes . | . . . Parts Lost 9 | . 1 8 Power 2 | . . 2 Propulsion 4 | . 1 3 Utility 1 | . . 1 Weapon 2 | . . 2 Highest Loss Streak 3 | . 1 3 To Critical Strikes . | . . . Average Slot Usage (%) 92 | . 100 83 Engine 13 | . 14 12 Treads 20 | . 28 9 Leg 7 | . . 16 Device 8 | . 14 . Storage 14 | . 14 14 Energy Gun 10 | . 14 5 Ballistic Gun 17 | . 14 21 Peak Build Rating 8 | 7 8 8 Average Rating 6 | 5 7 6 On Entrance 5 | . 7 8 Naked Turns . | . . . Heaviest Build 20 | 12 19 20 Greatest Support 40 | 40 40 40 Greatest Overweight (x) 2 | 2 . 1 Average Overweight (x) . | . . . Largest Inventory Capacity 10 | 8 10 10 Average Capacity 8 | 7 8 10 Most Carried 10 | 5 10 10 Average Carried 7 | 2 7 8 Final Capacity 10 | 8 10 10 Final Carried 10 | 5 10 8 Class Distribution -------------------- 100% | Mutant Dominant Class ---------------- Mutant | -10/Materials Mutant | -10/Mines Resources | -11 -10 -10 ----------- Run | Yrd Mat Min Matter Collected 550 | 279 106 165 Remotely 185 | 79 106 . Salvage Created 925 | 151 417 357 Parts 57 | 6 37 14 Haulers Intercepted 1 | . 1 . Recyclers Shooed 1 | . 1 . Parts Field Recycled . | . . . Retrieved Matter . | . . . Parts Self-Destructed . | . . . Prevented . | . . . Kills | -11 -10 -10 ------- Run | Yrd Mat Min Combat Hostiles Destroyed 25 | . 15 10 Guns 22 | . 13 9 AOE 3 | . 2 1 Classes Destroyed 7 | 2 5 . Tunneler 3 | 3 . . Hauler 1 | . 1 . Recycler 1 | 1 . . Operator 1 | . 1 . Watcher 2 | . 2 . Swarmer 16 | . 12 4 Grunt 9 | . 3 6 Best Kill Streak 4 | 2 4 3 Combat Bots Only 3 | . 3 3 Max Kills in Single Turn 2 | 1 2 1 Gunslinging 1 | . 1 . Exploded 1 | . 1 1 Melee . | . . . Uniques/NPCs Destroyed . | . . . Combat | -11 -10 -10 -------- Run | Yrd Mat Min Hostile Shots Fired 159 | . 58 101 Missed 37 | . 19 18 Damage Taken 1356 | . 413 943 Core 251 | . 28 223 Absorbed by Shields . | . . . Core Remaining (%) 100 | 100 . . Volleys Fired 109 | 9 48 52 Largest 2 | 2 2 2 Hottest 85 | 60 60 85 Shots Fired 217 | 18 96 103 Gun 217 | 18 96 103 Cannon . | . . . Launcher . | . . . Special . | . . . Kinetic 139 | 9 48 82 Thermal 5 | . . 5 Explosive . | . . . Electromagnetic 73 | 9 48 16 Robot Hit Streak 10 | 4 8 10 Robot Miss Streak 4 | 2 4 3 Penetration Max . | . . . Secondary Targets 4 | . 3 1 Max Gunslinging Chain 1 | . 1 1 Shots Hit Robots 130 | 10 51 69 Core Hits 56 | 5 28 23 Critical Kills 1 | . 1 . Critical Parts Destroyed . | . . . Critical Strikes 4 | 1 3 . Destroy 1 | . 1 . Corrupt 3 | 1 2 . Melee Attacks . | . . . Impact . | . . . Slashing . | . . . Piercing . | . . . Sneak Attacks . | . . . Combat Hostiles . | . . . Follow-up Attacks . | . . . Damage Inflicted 1576 | 103 709 764 Guns 1324 | 103 586 635 Cannons . | . . . Explosions 252 | . 123 129 Melee . | . . . Ramming . | . . . Kinetic 696 | 40 185 471 Thermal 252 | . 123 129 Explosive . | . . . Electromagnetic 628 | 63 401 164 Impact . | . . . Slashing . | . . . Piercing . | . . . Highest Corruption 2 | . 2 2 Average Corruption 2 | . 2 2 Corruption Purged . | . . . Corruption Blocked . | . . . Effects 11 | . 2 9 Matter Fused 4 | . 1 3 Heat Flow Errors 3 | . 1 2 Energy Discharges 1 | . . 1 Data Loss (minor) 1 | . . 1 Alerts 2 | . . 2 Overload Shots . | . . . Overflow Damage 18 | . 8 10 Projectiles . | . . . Explosions 18 | . 8 10 Melee . | . . . Knockbacks . | . . . Impact . | . . . Kinetic . | . . . Secondary . | . . . Self-Inflicted Damage 114 | . 85 29 Shots 2 | . 1 1 Rammed . | . . . Targets Rammed . | . . . Kicked . | . . . Crushed . | . . . Highest Temperature 271 | 40 159 271 Average Temperature 38 | 16 33 48 Received Heat Transfer 429 | . 42 387 Effects 1 | . . 1 Energy Bleed 1 | . . 1 Siege Activations . | . . . Robots Corrupted . | . . . Combat Hostiles . | . . . Parts Fried 2 | 1 1 . Impact Corruptions . | . . . Robots Melted . | . . . Combat Hostiles . | . . . Parts Melted . | . . . Heat Transferred 300 | . 100 200 Parts Sabotaged . | . . . Parts Stolen . | . . . Parts Stripped . | . . . Power Chain Reactions 3 | . 1 2 Alert | -11 -10 -10 ------- Run | Yrd Mat Min Peak Influence 429 | 20 429 222 Initial 113 | . 13 113 Average 138 | 7 167 125 Maximum Alert Level 2 | . 2 1 Low Security (%) 77 | 100 58 96 Level 1 19 | . 34 3 Level 2 3 | . 6 . Level 3 . | . . . Level 4 . | . . . Level 5 . | . . . High Security . | . . . Max Security . | . . . Squads Dispatched 1 | . 1 . Investigation . | . . . Extermination . | . . . Reinforcement 1 | . 1 . Assault . | . . . Garrison . | . . . Intercept . | . . . Searches Triggered . | . . . Construction Impeded . | . . . Haulers Reinforced . | . . . Active Scanning Responses . | . . . Cargo Convoy Interrupts . | . . . Stealth | -11 -10 -10 --------- Run | Yrd Mat Min Distress Signals . | . . . Communications Jammed . | . . . Distress Signals . | . . . Times Spotted 38 | . 21 17 Peak Tracking Total 4 | . 3 4 Tactical Retreats 5 | . 1 4 Traps | -11 -10 -10 ------- Run | Yrd Mat Min Traps Triggered 1 | . 1 . Indirectly . | . . . Trap Hack Attempts . | . . . Triggered . | . . . Disarmed . | . . . Reprogrammed . | . . . Reused . | . . . Traps Extracted . | . . . Installed . | . . . Triggered . | . . . Machines | -11 -10 -10 ---------- Run | Yrd Mat Min Machines Disabled 5 | . 4 1 Max in Single Turn 3 | . 3 1 Machines Repaired . | . . . Machines Dismantled . | . . . Machines Sabotaged . | . . . Overloaded Fab Kills . | . . . Hacking | -11 -10 -10 --------- Run | Yrd Mat Min Machines Accessed 6 | . 5 1 Terminals 6 | . 5 1 Fabricators . | . . . Repair Stations . | . . . Recycling Units . | . . . Scanalyzers . | . . . Garrison Access . | . . . Total Hacks 13 | . 11 2 Successful 1 | . 1 . Failed 12 | . 10 2 Catastrophic 2 | . 1 1 Database Lockouts . | . . . Manual 6 | . 4 2 Terminals 13 | . 11 2 Fabricators . | . . . Repair Stations . | . . . Recycling Units . | . . . Scanalyzers . | . . . Garrison Access . | . . . Terminal Hacks 1 | . 1 . Robot Analysis 1 | . 1 . Fabricator Hacks . | . . . Repair Station Hacks . | . . . Recycling Unit Hacks . | . . . Scanalyzer . | . . . Garrison Access Hacks . | . . . Unauthorized Hacks . | . . . Terminals . | . . . Fabricators . | . . . Repair Stations . | . . . Recycling Units . | . . . Scanalyzers . | . . . Garrison Access . | . . . Data Cores Recovered . | . . . Used . | . . . Hacking Detections 6 | . 5 1 Full Trace Events . | . . . Feedback Events . | . . . Feedback Blocked . | . . . Robot Schematics Acquired . | . . . Robots Built . | . . . Authchips . | . . . Time . | . . . Total Robot Build Rating . | . . . Part Schematics Acquired . | . . . Parts Built . | . . . Authchips . | . . . Time . | . . . Total Part Build Rating . | . . . Parts Repaired . | . . . Time . | . . . Parts Recycled . | . . . Recycled Matter . | . . . Retrieved Matter . | . . . Retrieved Components . | . . . Parts Scanalyzed . | . . . Part Schematics Acquired . | . . . Parts Damaged . | . . . Bothacking | -11 -10 -10 ------------ Run | Yrd Mat Min Used RIF Installer . | . . . Robots Hacked . | . . . Non-combat . | . . . Combat . | . . . Robot Hacks Applied . | . . . Relay Couplers Released . | . . . Fabnet Peak Effective % . | . . . Robots Rewired . | . . . Allies Hacked . | . . . Hacks Repelled . | . . . Allies | -11 -10 -10 -------- Run | Yrd Mat Min Total Allies . | . . . Largest Group . | . . . Highest-Rated Group . | . . . Highest-Rated Ally . | . . . Total Orders . | . . . Ally Attacks . | . . . Total Damage . | . . . Kills . | . . . Allies Corrupted . | . . . Allies Melted . | . . . Intel | -11 -10 -10 ------- Run | Yrd Mat Min Robot Analysis Total 1 | . 1 . Derelict Logs Recovered 2 | . . 2 Drone Launches . | . . . Drone Recoveries . | . . . Exploration | -11 -10 -10 ------------- Run | Yrd Mat Min Turns Passed 2179 | 156 1139 884 Spaces Moved 1190 | 76 595 519 Core 11 | 11 . . Treads 847 | 65 595 187 Legs 332 | . . 332 Wheels . | . . . Hover . | . . . Flight . | . . . Fastest Speed 50 | 50 160 120 Average Speed 148 | 150 160 136 Slowest Speed 190 | 160 160 190 Overloaded Moves . | . . . Propulsion Burnouts . | . . . Robots Hopped . | . . . Cave-ins Triggered . | . . . Exploration Rate (%) 63 | 5 90 94 Regions Visited 2 Branch Regions 1 Pre-discovered Areas 2 | . . 2 Known Exits Taken . | . . . Unknown Exits Taken 2 | 1 1 . Scrap Searched 1 | . . 1 Spaces Dug . | . . . Terrain Destroyed 46 | . 41 5 Melee . | . . . Projectile . | . . . AOE 46 | . 41 5 Terrain Rammed . | . . . Walls Destroyed . | . . . Machines Disabled . | . . . Actions | -11 -10 -10 --------- Run | Yrd Mat Min Total 1403 | 99 697 607 Wait 59 | . 35 24 Move 1188 | 75 594 519 Hop . | . . . Pick Up 18 | 7 8 3 Fast Attach 8 | 6 . 2 Attach 6 | 1 1 4 Detach . | . . . Swap 7 | . 5 2 Drop 8 | 1 6 1 Fire 109 | 9 48 52 Melee . | . . . Ram . | . . . Kick . | . . . Crush . | . . . Escape Stasis . | . . . Rewire . | . . . Trap . | . . . Miscellaneous . | . . . Route ------- -11/Scrapyard -10/Materials (discovered 4 exits: [*Mat x3] / *Min) -10/Mines (discovered 2 exits: [*Mat x2]) History --------- Turn | Location | Event 11 | -11/Scrapyard | Discovered new exit (range 16) 157 | -11/Scrapyard | Entered Materials 302 | -10/Materials | Build established: Mutant 530 | -10/Materials | Discovered new exit (range 5) 691 | -10/Materials | Discovered new exit (range 9) 923 | -10/Materials | Discovered new exit (range 15) 1152 | -10/Materials | Discovered new exit (range 13) 1296 | -10/Materials | Entered Mines 1318 | -10/Mines | Met a Derelict bent on vengeance 1586 | -10/Mines | Excavation squad dispatched 1586 | -10/Mines | A large section of the Mines collapsed 1610 | -10/Mines | Learned location of Zion (-6) 1678 | -10/Mines | Core integrity fell below 50% 1698 | -10/Mines | Lost 3 parts (1p1n1w) 1729 | -10/Mines | Discovered new exit (range 6) 1732 | -10/Mines | Learned location of Storage (-9) 1796 | -10/Mines | Discovered new exit (range 8) 1816 | -10/Mines | Learned 2 Materials zone layouts 1876 | -10/Mines | Core integrity fell below 20% 2034 | -10/Mines | Received a Rocket Launcher from a helpful Derelict 2180 | -10/Mines | Destroyed by S-10 Pest with Light Assault Rifle Last Messages --------------- think you need a mining laser when you travel the depths." 02030_ 08-B98(g): "They are crazy." 02031_ 08-B98(g): "Everyone knows a good old rocket launcher goes a long way." 02032_ 08-B98(g): "Need to get rid of a swarm? Done. Need a big hole in the wall? Done." 02033_ 08-B98(g): "Need a small hole in the wall? Leave that to the mining laser wimps, I say!" 02034_ 08-B98(g): "Would you like a rocket launcher? I know I would if I were you, so I'm going to lend you mine." 02034_ 08-B98(g) slips back into the shadows. 02038_ Acquired Rocket Launcher. 02125_ System corrupted: Matter fused (-8). 02144_ Acquired 8 matter. 02162_ S-10 Pest destroyed. 02165_ Acquired 19 matter. 02176_ Aluminum Leg destroyed. Map ----- +----------------------------------------------------+ | | | ??????????????????????????????????????? | | ??????????????????????????????????????? | | ??????????????????????????????????????? | | ??????????????????????????????????????? | | ??????????????????????????????????????? | | ??????????????????????????????????????? | | ??????????????????????????????????????? | | ????????????????????????????#?????????? | | ????????????????????##?????? ###??????? | | ??????????????????? #??????# #??????? | | ?????????????????? #??????# #??###?? | | ????????????##### #??????# #?## ##? | | ?????###????# #???????# ### #? | | ?#####T###??# #?????????# ## #? | | ?# #??# #####????????## #?? | | ?# """ #### ###????####### < ### | | ?# """ ##???#!% | | ?# """ ###?#%######## ## | | ?# ### s ###=#??????## #? | | ?# ## %=%############ ##? | | ?######### ##### #???# #?? | | ????????## #???# """ #???# #?? | | ????????# ##???# """ #???# #?? | | ????????# ## #????# """ #???# ### | | ????????## [@### #????# #???# | | ?????????###= ##?# ????# #???# ### | | ???????????# =#??##### ### ####### ### | | ???????????# ######## | | ???????????# ## ##### ########### | | ??????????## #### #????????## | | ??????????# %] #????????# | | ??????????# ##### #####????## | | ??????????# ##???# # ##????# | | ??????????## ## #????# #????# | | ???????????####### ###### #???## | | ?????????????????# ##??## | | ?????????????????# ###### ##???# | | ???????????????### ##??# ##????# | | ??????????????## #??## ##?????## | | ?????????????## #???## #???????# | | ?????????????# ##????# #####???# | | ?????????????# ##?????# #???# | | ?????????????# #??????##### ##### | | ?????????????# ##?????????# | | ?????????????# ##????????# ###### | | ?????????????# #???????????????? | | ?????????????# #???????????????? | | ?????????????# ##???????????????? | | ?????????????# ##????????????????? | +----------------------------------------------------+ Best States ------------- Heat Dissipation 25 Energy Generation 10 Energy Capacity 250 Matter Stores 300 Matter Capacity 300 Sight Range 16 Terrain Scan Density 10 Evasion (%) 55 Recoil Reduction 2 Item Schematics ----------------- None Robot Schematics ------------------ None Fabricated ------------ Nothing Alien Tech Used ----------------- None Achievements -------------- None Challenges ------------ None Game ------ Seed ScanLauncherFlakker Manual? 0 Play Time 00:14:29 Cumulative 16.7 hours Start 2025.01.10 @ 16:58:03 End 2025.01.10 @ 17:11:02 Sessions 1 Manual Loads 0 Difficulty Rogue Special Mode None Game No. 12 Rogue 12 Adventurer 0 Explorer 0 Win Type - Total 0 Types 0/0/0/0/0/0/0/0/0 Lore% 14 Gallery% 22 Achievement% 21 Wizard Run 0 Options --------- Layout 1 ASCII 0 Keyboard 0 Movement Numpad Keybinds 0 Fullscreen 1 Font 24/Smallcaps Map View 50x35 Zoom Use 0% Tactical HUD 1 Map Filters NONE Filters NONE Steam 1 RUN: a47d543d-5fc4-4275-a78e-d9c29316a8f4